fUST/lending_fUST_20240813
["ID","MTS","AMOUNT","RATE_DAILY","PERIOD"]
[334784248,1723559446651,-500.0,0.00013972,2]
[334784249,1723559446660,-1090.62,0.00013972,2]
[334784250,1723559446669,-472.66810665,0.00013972,2]
[334784251,1723559446679,-1083.15,0.00013972,2]
[334784252,1723559446688,-523.84,0.00013972,2]
[334784253,1723559446698,-606.7,0.00013972,2]
[334784254,1723559446712,-1052.73,0.00013972,2]
[334784255,1723559446722,-500.0,0.00013972,2]
[334784256,1723559446732,-4408.12,0.00013972,2]
[334784257,1723559446743,-1181.74,0.00013972,2]
[334784258,1723559446755,-1050.02,0.00013972,2]
[334784259,1723559446766,-1161.92,0.00013972,2]
[334784260,1723559446775,-812.89,0.00013972,2]
[334784261,1723559446787,-500.0,0.00013972,2]
[334784262,1723559446796,-686.26,0.00013972,2]
[334784263,1723559446805,-500.0,0.00013972,2]
[334784264,1723559446816,-1046.14,0.00013972,2]
[334784265,1723559446826,-500.0,0.00013972,2]
[334784266,1723559446837,-616.6,0.00013972,2]
[334784267,1723559446846,-3067.71,0.00013972,2]
[334784268,1723559446856,-3433.34,0.00013972,2]
[334784269,1723559446866,-500.0,0.00013972,2]
[334784270,1723559446875,-527.65,0.00013972,2]
[334784271,1723559446885,-951.5,0.00013972,2]
[334784272,1723559446894,-500.0,0.00013972,2]
[334784273,1723559446904,-500.0,0.00013972,2]
[334784274,1723559446913,-500.0,0.00013972,2]
[334784275,1723559446923,-1607.79,0.00013972,2]
[334784276,1723559446932,-1294.07,0.00013972,2]
[334784277,1723559446942,-500.0,0.00013972,2]
[334784278,1723559446951,-896.55,0.00013972,2]
[334784279,1723559446961,-500.0,0.00013972,2]
[334784280,1723559446972,-661.22,0.00013972,2]
[334784281,1723559446983,-3517.8,0.00013972,2]
[334784282,1723559446993,-662.25,0.00013972,2]
[334784283,1723559447003,-500.0,0.00013972,2]
[334784284,1723559447012,-600.39,0.00013972,2]
[334784285,1723559447021,-500.0,0.00013972,2]
[334784286,1723559447031,-1276.6,0.00013972,2]
[334784287,1723559447044,-500.0,0.00013972,2]
[334784288,1723559447053,-500.0,0.00013972,2]
[334784289,1723559447063,-500.0,0.00013972,2]
[334784290,1723559447072,-500.0,0.00013972,2]
[334784291,1723559447081,-500.0,0.00013972,2]
[334784292,1723559447090,-184.79,0.00013972,2]
[334784293,1723559447099,-150.112233,0.00014,2]
[334784294,1723559447108,-150.112233,0.000142,2]
[334784295,1723559447118,-200.0,0.00014237,2]
[334784296,1723559447128,-200.0,0.00014237,2]
[334784297,1723559447138,-500.0,0.00014246,2]
[334784298,1723559447148,-502.42,0.00014246,2]
[334784299,1723559447157,-500.0,0.00014246,2]
[334784300,1723559447167,-500.0,0.00014246,2]
[334784301,1723559447176,-1506.65,0.00014246,2]
[334784302,1723559447186,-1048.53,0.00014246,2]
[334784303,1723559447196,-500.0,0.00014246,2]
[334784304,1723559447206,-500.0,0.00014246,2]
[334784305,1723559447216,-500.0,0.00014246,2]
[334784306,1723559447225,-500.0,0.00014246,2]
[334784307,1723559447236,-500.0,0.00014246,2]
[334784308,1723559447246,-500.0,0.00014246,2]
[334784309,1723559447256,-500.0,0.00014246,2]
[334784310,1723559447265,-500.0,0.00014246,2]
[334784311,1723559447275,-500.0,0.00014246,2]
[334784312,1723559447288,-500.0,0.00014246,2]
[334784313,1723559447299,-500.0,0.00014246,2]
[334784314,1723559447310,-500.0,0.00014246,2]
[334784315,1723559447322,-790.37,0.00014246,2]
[334784316,1723559447332,-500.0,0.00014246,2]
[334784317,1723559447341,-578.67,0.00014246,2]
[334784318,1723559447351,-500.0,0.00014246,2]
[334784319,1723559447361,-500.0,0.00014246,2]
[334784320,1723559447370,-538.63,0.00014246,2]
[334784321,1723559447380,-500.0,0.00014246,2]
[334784322,1723559447390,-655.98,0.00014246,2]
[334784323,1723559447400,-803.13,0.00014246,2]
[334784324,1723559447409,-500.0,0.00014246,2]
[334784325,1723559447419,-500.0,0.00014246,2]
[334784326,1723559447428,-500.0,0.00014246,2]
[334784327,1723559447437,-500.0,0.00014246,2]
[334784328,1723559447447,-500.0,0.00014246,2]
[334784329,1723559447457,-500.0,0.00014246,2]
[334784330,1723559447466,-500.0,0.00014246,2]
[334784331,1723559447475,-500.0,0.00014246,2]
[334784332,1723559447484,-522.27,0.00014246,2]
[334784333,1723559447493,-500.0,0.00014246,2]
[334784334,1723559447503,-500.0,0.00014246,2]
[334784335,1723559447512,-500.0,0.00014246,2]
[334784336,1723559447522,-500.0,0.00014246,2]
[334784337,1723559447531,-500.0,0.00014246,2]
[334784338,1723559447544,-500.0,0.00014246,2]
[334784339,1723559447555,-500.0,0.00014246,2]
[334784340,1723559447564,-500.0,0.00014246,2]
[334784341,1723559447574,-500.0,0.00014246,2]
[334784342,1723559447583,-580.36,0.00014246,2]
[334784343,1723559447592,-758.87,0.00014246,2]
[334784344,1723559447602,-649.12,0.00014246,2]
[334784345,1723559447612,-500.0,0.00014246,2]
[334784346,1723559447622,-500.0,0.00014246,2]
[334784347,1723559447632,-500.0,0.00014246,2]
[334784348,1723559447643,-500.0,0.00014246,2]
[334784349,1723559447656,-708.34,0.00014246,2]
[334784350,1723559447666,-500.0,0.00014246,2]
[334784351,1723559447675,-500.0,0.00014246,2]
[334784352,1723559447687,-500.0,0.00014246,2]
[334784353,1723559447698,-500.0,0.00014246,2]
[334784354,1723559447708,-500.0,0.00014246,2]
[334784355,1723559447720,-500.0,0.00014246,2]
[334784356,1723559447730,-500.0,0.00014246,2]
[334784357,1723559447741,-500.0,0.00014246,2]
[334784358,1723559447751,-500.0,0.00014246,2]
[334784359,1723559447762,-1189.07,0.00014246,2]
[334784360,1723559447771,-500.0,0.00014246,2]
[334784361,1723559447780,-500.0,0.00014246,2]
[334784362,1723559447796,-876.28,0.00014246,2]
[334784363,1723559447807,-708.17,0.00014246,2]
[334784364,1723559447818,-1307.35,0.00014246,2]
[334784365,1723559447828,-500.0,0.00014246,2]
[334784366,1723559447837,-720.93,0.00014246,2]
[334784367,1723559447846,-1625.97,0.00014246,2]
[334784368,1723559447856,-818.98,0.00014246,2]
[334784369,1723559447865,-680.48,0.00014246,2]
[334784370,1723559447875,-784.09,0.00014246,2]
[334784371,1723559447884,-2394.91,0.00014246,2]
[334784372,1723559447894,-500.0,0.00014246,2]
[334784373,1723559447903,-1214.43,0.00014246,2]
[334784374,1723559447912,-500.0,0.00014246,2]
[334784375,1723559447922,-6211.78,0.00014246,2]
[334784376,1723559447931,-673.86,0.00014246,2]
[334784377,1723559447940,-721.64,0.00014246,2]
[334784378,1723559447949,-500.0,0.00014246,2]
[334784379,1723559447959,-1845.84,0.00014246,2]
[334784380,1723559447969,-500.0,0.00014246,2]
[334784381,1723559447978,-500.0,0.00014246,2]
[334784382,1723559447987,-734.5,0.00014246,2]
[334784383,1723559447996,-500.0,0.00014246,2]
[334784384,1723559448005,-500.0,0.00014246,2]
[334784385,1723559448014,-1029.66,0.00014246,2]
[334784386,1723559448024,-982.15,0.00014246,2]
[334784387,1723559448034,-500.0,0.00014246,2]
[334784388,1723559448049,-500.0,0.00014246,2]
[334784389,1723559448061,-500.0,0.00014246,2]
[334784390,1723559448070,-312.74142378,0.00014246,2]
[334784392,1723559657046,10000.0,0.00025,60]
[334784393,1723559664415,10000.0,0.00025,60]
[334784394,1723559673252,10000.0,0.00025,60]
[334784395,1723559682771,10000.0,0.00025,60]
[334784396,1723559689742,10000.0,0.00025,60]
[334784397,1723559697698,10000.0,0.00025,60]
[334784398,1723559704989,10000.0,0.00025,60]
[334784399,1723559709369,1111.78409152,0.00025,60]
[334784400,1723559712855,10000.0,0.00025,60]
[334784401,1723559719917,10000.0,0.00025,60]
[334784402,1723559726238,10000.0,0.00025,60]
[334784403,1723559747930,4760.0,0.00025,60]
[334784404,1723559869863,701.0,0.00025,60]
[334784406,1723560160857,228.67296,0.00025,60]
[334784407,1723560352123,-609.445,9.999e-05,2]
[334784408,1723560352145,-154.72922386,9.999e-05,2]
[334784409,1723560352166,-176.02174512,9.999e-05,2]
[334784410,1723560352187,-154.76012181,9.999e-05,2]
[334784411,1723560352208,-404.1964714,9.999e-05,2]
[334784412,1723560352229,-205.17764203,9.999e-05,2]
[334784413,1723560352250,-154.72922386,9.999e-05,2]
[334784414,1723560352271,-154.76012181,9.999e-05,2]
[334784415,1723560352293,-817.13111103,0.0001,2]
[334784416,1723560352315,-24900.0,0.00012474,2]
[334784417,1723560352339,-166.666667,0.00012586,2]
[334784418,1723560352361,-166.666667,0.00012668,2]
[334784419,1723560352383,-166.666667,0.0001275,2]
[334784420,1723560352405,-166.666667,0.00012832,2]
[334784421,1723560352428,-166.666667,0.00012914,2]
[334784422,1723560352450,-166.666667,0.00012996,2]
[334784423,1723560352472,-166.666667,0.00013077,2]
[334784424,1723560352495,-166.666667,0.00013159,2]
[334784425,1723560352520,-166.666667,0.00013241,2]
[334784426,1723560352542,-153.0,0.00013425,2]
[334784427,1723560352564,-153.0,0.00013425,2]
[334784428,1723560352592,-153.0,0.00013425,2]
[334784429,1723560352613,-153.0,0.00013425,2]
[334784430,1723560352636,-153.0,0.00013425,2]
[334784431,1723560352658,-308.1506605,0.00013425,2]
[334784432,1723560352680,-2350.96854272,0.00013498,2]
[334784433,1723560352701,-1983.58884522,0.00013598,2]
[334784434,1723560352722,-200.0,0.00013673,2]
[334784435,1723560352743,-200.0,0.00013673,2]
[334784436,1723560352765,-200.0,0.00013673,2]
[334784437,1723560352786,-259.8259034,0.00013673,2]
[334784438,1723560352811,-7539.23551016,0.00013678,2]
[334784439,1723560352841,-94731.91229769,0.00013678,2]
[334784440,1723560430110,-24900.0,0.00012716,2]
[334784441,1723560430133,-205.3160664,0.00013598,2]
[334784442,1723560430156,-200.0,0.00013673,2]
[334784443,1723560430180,-81526.3881286,0.00013678,2]
[334784536,1723560638613,-156.91451497,9.999e-05,2]
[334784538,1723560638622,-156.96173825,9.999e-05,2]
[334784540,1723560638632,-154.75239617,9.999e-05,2]
[334784542,1723560638643,-2057.09747488,0.00013598,2]
[334784543,1723560638653,-200.0,0.00013673,2]
[334784545,1723560638662,-1670.74719108,0.00013678,2]
[334784547,1723560638671,-3769.61775508,0.00013688,2]
[334784549,1723560638681,-329765.9652059,0.00013688,2]
[334784553,1723560639126,-8673.9413931,0.00013688,2]
[334784554,1723560639136,-500.0,0.00013698,2]
[334784555,1723560639145,-429.04944771,0.00013698,2]
[334784556,1723560639154,-500.0,0.00013698,2]
[334784557,1723560639167,-500.0,0.00013698,2]
[334784558,1723560639179,-500.0,0.00013698,2]
[334784559,1723560639190,-500.0,0.00013698,2]
[334784560,1723560639199,-500.0,0.00013698,2]
[334784561,1723560639209,-354.08086517,0.00013698,2]
[334784562,1723560639218,-500.0,0.00013698,2]
[334784563,1723560639232,-446.51224702,0.00013698,2]
[334784564,1723560639243,-500.0,0.00013698,2]
[334784565,1723560639254,-500.0,0.00013698,2]
[334784566,1723560639265,-500.0,0.00013698,2]
[334784567,1723560639276,-404.15298296,0.00013698,2]
[334784582,1723560640615,-95.84701704,0.00013698,2]
[334784583,1723560640624,-500.0,0.00013698,2]
[334784584,1723560640634,-500.0,0.00013698,2]
[334784585,1723560640644,-302.73834843,0.00013698,2]
[334784586,1723560640656,-197.26165157,0.00013698,2]
[334784587,1723560640666,-258.0601811,0.00013698,2]
[334784588,1723560640675,-500.0,0.00013698,2]
[334784589,1723560640685,-500.0,0.00013698,2]
[334784590,1723560640694,-500.0,0.00013698,2]
[334784591,1723560640704,-500.0,0.00013698,2]
[334784592,1723560640713,-325.21026407,0.00013698,2]
[334784593,1723560640723,-500.0,0.00013698,2]
[334784594,1723560640732,-500.0,0.00013698,2]
[334784595,1723560640741,-500.0,0.00013698,2]
[334784596,1723560640751,-500.0,0.00013698,2]
[334784597,1723560640760,-556.88660645,0.00013698,2]
[334784598,1723560640769,-500.0,0.00013698,2]
[334784599,1723560640779,-500.0,0.00013698,2]
[334784600,1723560640788,-500.0,0.00013698,2]
[334784601,1723560640797,-500.0,0.00013698,2]
[334784602,1723560640807,-500.0,0.00013698,2]
[334784603,1723560640817,-500.0,0.00013698,2]
[334784604,1723560640826,-500.0,0.00013698,2]
[334784605,1723560640835,-500.0,0.00013698,2]
[334784606,1723560640845,-500.0,0.00013698,2]
[334784607,1723560640854,-500.0,0.00013698,2]
[334784608,1723560640864,-500.0,0.00013698,2]
[334784609,1723560640873,-500.0,0.00013698,2]
[334784610,1723560640882,-500.0,0.00013698,2]
[334784611,1723560640895,-320.64924948,0.00013698,2]
[334784612,1723560640904,-655.86500246,0.00013698,2]
[334784613,1723560640913,-500.0,0.00013698,2]
[334784614,1723560640923,-368.86612925,0.00013698,2]
[334784615,1723560640933,-655.86500246,0.00013698,2]
[334784616,1723560640942,-655.86500246,0.00013698,2]
[334784617,1723560640951,-207.35847098,0.00013698,2]
[334784618,1723560640961,-655.86500246,0.00013698,2]
[334784619,1723560640970,-655.86500246,0.00013698,2]
[334784620,1723560640980,-655.86500246,0.00013698,2]
[334784621,1723560640989,-655.86500246,0.00013698,2]
[334784622,1723560640999,-655.86500246,0.00013698,2]
[334784623,1723560641008,-655.86500246,0.00013698,2]
[334784624,1723560641017,-655.86500246,0.00013698,2]
[334784625,1723560641027,-655.86500246,0.00013698,2]
[334784626,1723560641036,-655.86500246,0.00013698,2]
[334784627,1723560641046,-655.86500246,0.00013698,2]
[334784628,1723560641055,-655.86500246,0.00013698,2]
[334784629,1723560641065,-655.86500246,0.00013698,2]
[334784630,1723560641074,-655.86500246,0.00013698,2]
[334784631,1723560641084,-655.86500246,0.00013698,2]
[334784632,1723560641096,-655.86500246,0.00013698,2]
[334784633,1723560641106,-655.86500246,0.00013698,2]
[334784634,1723560641115,-655.86500246,0.00013698,2]
[334784635,1723560641125,-655.86500246,0.00013698,2]
[334784636,1723560641136,-655.86500246,0.00013698,2]
[334784637,1723560641147,-747.68610281,0.00013698,2]
[334784638,1723560641157,-747.68610281,0.00013698,2]
[334784639,1723560641169,-747.68610281,0.00013698,2]
[334784640,1723560641178,-747.68610281,0.00013698,2]
[334784641,1723560641188,-747.68610281,0.00013698,2]
[334784642,1723560641197,-503.80614927,0.00013698,2]
[334784643,1723560641206,-500.0,0.00013698,2]
[334784644,1723560641216,-500.0,0.00013698,2]
[334784645,1723560641226,-500.0,0.00013698,2]
[334784646,1723560641235,-500.0,0.00013698,2]
[334784647,1723560641244,-575.17,0.00013698,2]
[334784648,1723560641254,-500.0,0.00013698,2]
[334784649,1723560641263,-470.70017869,0.00013698,2]
[334784650,1723560641273,-500.0,0.00013698,2]
[334784651,1723560641282,-500.0,0.00013698,2]
[334784652,1723560641291,-500.0,0.00013698,2]
[334784653,1723560641300,-500.0,0.00013698,2]
[334784654,1723560641309,-500.0,0.00013698,2]
[334784655,1723560641318,-500.0,0.00013698,2]
[334784656,1723560641328,-500.0,0.00013698,2]
[334784657,1723560641337,-500.0,0.00013698,2]
[334784658,1723560641347,-500.0,0.00013698,2]
[334784659,1723560641356,-500.0,0.00013698,2]
[334784660,1723560641367,-500.0,0.00013698,2]
[334784661,1723560641378,-500.0,0.00013698,2]
[334784662,1723560641387,-500.0,0.00013698,2]
[334784663,1723560641399,-500.0,0.00013698,2]
[334784664,1723560641409,-500.0,0.00013698,2]
[334784665,1723560641423,-500.0,0.00013698,2]
[334784666,1723560641433,-500.0,0.00013698,2]
[334784667,1723560641443,-500.0,0.00013698,2]
[334784668,1723560641456,-300.96958541,0.00013698,2]
[334784669,1723560641467,-501.03037611,0.00013698,2]
[334784670,1723560641478,-514.45262368,0.00013698,2]
[334784671,1723560641490,-500.0,0.00013698,2]
[334784672,1723560641501,-500.0,0.00013698,2]
[334784673,1723560641511,-500.0,0.00013698,2]
[334784674,1723560641520,-502.15039408,0.00013698,2]
[334784675,1723560641530,-503.6887129,0.00013698,2]
[334784676,1723560641539,-500.0,0.00013698,2]
[334784677,1723560641548,-500.0,0.00013698,2]
[334784678,1723560641558,-500.0,0.00013698,2]
[334784679,1723560641567,-500.6539124,0.00013698,2]
[334784680,1723560641576,-581.41,0.00013698,2]
[334784681,1723560641586,-500.0,0.00013698,2]
[334784682,1723560641595,-505.67,0.00013698,2]
[334784683,1723560641604,-500.0,0.00013698,2]
[334784684,1723560641615,-503.63344452,0.00013698,2]
[334784685,1723560641625,-505.9565507,0.00013698,2]
[334784686,1723560641635,-500.0,0.00013698,2]
[334784687,1723560641646,-500.0,0.00013698,2]
[334784688,1723560641655,-286.74941357,0.00013698,2]
[334784689,1723560641664,-500.0,0.00013698,2]
[334784690,1723560641675,-500.0,0.00013698,2]
[334784691,1723560641685,-500.0,0.00013698,2]
[334784692,1723560641695,-925.22,0.00013698,2]
[334784693,1723560641705,-500.0,0.00013698,2]
[334784694,1723560641716,-500.0,0.00013698,2]
[334784695,1723560641727,-500.0,0.00013698,2]
[334784696,1723560641738,-500.0,0.00013698,2]
[334784697,1723560641748,-395.49600483,0.00013698,2]
[334784698,1723560641758,-1178.14169129,0.00013698,2]
[334784699,1723560641769,-757.43,0.00013698,2]
[334784700,1723560641780,-500.0,0.00013698,2]
[334784701,1723560641789,-500.0,0.00013698,2]
[334784702,1723560641800,-503.35530028,0.00013698,2]
[334784703,1723560641810,-500.0,0.00013698,2]
[334784704,1723560641819,-500.0,0.00013698,2]
[334784705,1723560641828,-710.93,0.00013698,2]
[334784706,1723560641837,-500.0,0.00013698,2]
[334784707,1723560641847,-500.0,0.00013698,2]
[334784708,1723560641857,-201.19215877,0.00013698,2]
[334784709,1723560641866,-500.0,0.00013698,2]
[334784710,1723560641876,-500.0,0.00013698,2]
[334784711,1723560641886,-504.41781418,0.00013698,2]
[334784712,1723560641900,-769.67,0.00013698,2]
[334784713,1723560641912,-500.0,0.00013698,2]
[334784714,1723560641922,-501.85302958,0.00013698,2]
[334784715,1723560641933,-500.0,0.00013698,2]
[334784716,1723560641944,-500.0,0.00013698,2]
[334784717,1723560641954,-539.61,0.00013698,2]
[334784718,1723560641964,-500.0,0.00013698,2]
[334784719,1723560641975,-500.0,0.00013698,2]
[334784720,1723560641986,-500.0,0.00013698,2]
[334784721,1723560641996,-518.10187527,0.00013698,2]
[334784722,1723560642006,-500.0,0.00013698,2]
[334784723,1723560642015,-631.47498351,0.00013698,2]
[334784724,1723560642024,-500.0,0.00013698,2]
[334784725,1723560642033,-500.0,0.00013698,2]
[334784726,1723560642043,-500.0,0.00013698,2]
[334784727,1723560642053,-508.53247998,0.00013698,2]
[334784728,1723560642062,-500.0,0.00013698,2]
[334784729,1723560642071,-500.0,0.00013698,2]
[334784730,1723560642081,-509.08617267,0.00013698,2]
[334784731,1723560642095,-500.0,0.00013698,2]
[334784732,1723560642104,-500.0,0.00013698,2]
[334784733,1723560642114,-500.0,0.00013698,2]
[334784734,1723560642125,-500.0,0.00013698,2]
[334784735,1723560642137,-500.0,0.00013698,2]
[334784736,1723560642150,-500.0,0.00013698,2]
[334784737,1723560642161,-500.0,0.00013698,2]
[334784738,1723560642172,-500.0,0.00013698,2]
[334784739,1723560642184,-500.0,0.00013698,2]
[334784740,1723560642195,-500.0,0.00013698,2]
[334784741,1723560642205,-500.0,0.00013698,2]
[334784742,1723560642217,-500.0,0.00013698,2]
[334784743,1723560642228,-500.0,0.00013698,2]
[334784744,1723560642241,-500.0,0.00013698,2]
[334784745,1723560642251,-500.0,0.00013698,2]
[334784746,1723560642260,-500.0,0.00013698,2]
[334784747,1723560642271,-500.0,0.00013698,2]
[334784748,1723560642281,-500.0,0.00013698,2]
[334784749,1723560642291,-509.0994654,0.00013698,2]
[334784750,1723560642300,-500.0,0.00013698,2]
[334784751,1723560642310,-500.0,0.00013698,2]
[334784752,1723560642321,-500.0,0.00013698,2]
[334784753,1723560642332,-500.0,0.00013698,2]
[334784754,1723560642343,-500.0,0.00013698,2]
[334784755,1723560642353,-500.0,0.00013698,2]
[334784756,1723560642366,-500.0,0.00013698,2]
[334784757,1723560642376,-518.15476045,0.00013698,2]
[334784758,1723560642387,-500.0,0.00013698,2]
[334784759,1723560642397,-507.02549008,0.00013698,2]
[334784760,1723560642407,-500.0,0.00013698,2]
[334784761,1723560642417,-500.0,0.00013698,2]
[334784762,1723560642428,-500.0,0.00013698,2]
[334784763,1723560642438,-500.0,0.00013698,2]
[334784764,1723560642448,-500.0,0.00013698,2]
[334784765,1723560642459,-500.0,0.00013698,2]
[334784766,1723560642470,-500.0,0.00013698,2]
[334784767,1723560642480,-523.21,0.00013698,2]
[334784768,1723560642490,-518.39715278,0.00013698,2]
[334784769,1723560642500,-500.0,0.00013698,2]
[334784770,1723560642510,-501.34584591,0.00013698,2]
[334784771,1723560642521,-500.0,0.00013698,2]
[334784772,1723560642533,-500.0,0.00013698,2]
[334784773,1723560642545,-500.0,0.00013698,2]
[334784774,1723560642555,-500.0,0.00013698,2]
[334784775,1723560642565,-500.0,0.00013698,2]
[334784776,1723560642575,-500.0,0.00013698,2]
[334784777,1723560642586,-500.0,0.00013698,2]
[334784778,1723560642596,-500.0,0.00013698,2]
[334784779,1723560642606,-500.0,0.00013698,2]
[334784780,1723560642616,-500.0,0.00013698,2]
[334784781,1723560642626,-500.0,0.00013698,2]
[334784782,1723560642637,-500.0,0.00013698,2]
[334784783,1723560642648,-500.0,0.00013698,2]
[334784784,1723560642658,-500.0,0.00013698,2]
[334784785,1723560642668,-650.3,0.00013698,2]
[334784786,1723560642678,-500.0,0.00013698,2]
[334784787,1723560642688,-500.0,0.00013698,2]
[334784788,1723560642698,-727.25,0.00013698,2]
[334784789,1723560642855,-500.0,0.00013698,2]
[334784790,1723560642865,-500.0,0.00013698,2]
[334784791,1723560642874,-500.0,0.00013698,2]
[334784792,1723560642884,-500.0,0.00013698,2]
[334784793,1723560642897,-500.0,0.00013698,2]
[334784794,1723560642919,-500.0,0.00013698,2]
[334784795,1723560642931,-500.0,0.00013698,2]
[334784796,1723560642941,-512.18068449,0.00013698,2]
[334784797,1723560642952,-500.0,0.00013698,2]
[334784798,1723560642962,-500.0,0.00013698,2]
[334784800,1723560642972,-500.0,0.00013698,2]
[334784802,1723560642983,-500.0,0.00013698,2]
[334784804,1723560642993,-500.0,0.00013698,2]
[334784806,1723560643004,-500.0,0.00013698,2]
[334784808,1723560643015,-507.37735056,0.00013698,2]
[334784810,1723560643026,-500.0,0.00013698,2]
[334784811,1723560643037,-500.0,0.00013698,2]
[334784812,1723560643047,-500.0,0.00013698,2]
[334784813,1723560643057,-656.25,0.00013698,2]
[334784814,1723560643067,-525.1,0.00013698,2]
[334784816,1723560643077,-879.6,0.00013698,2]
[334784818,1723560643092,-500.0,0.00013698,2]
[334784820,1723560643102,-500.0,0.00013698,2]
[334784822,1723560643112,-500.0,0.00013698,2]
[334784823,1723560643123,-235.25922829,0.00013698,2]
[334784824,1723560643133,-500.0,0.00013698,2]
[334784825,1723560643144,-500.0,0.00013698,2]
[334784826,1723560643154,-537.09112232,0.00013698,2]
[334784827,1723560643164,-500.0,0.00013698,2]
[334784829,1723560643175,-1139.53,0.00013698,2]
[334784830,1723560643185,-500.0,0.00013698,2]
[334784831,1723560643197,-784.86,0.00013698,2]
[334784832,1723560643208,-1558.23,0.00013698,2]
[334784833,1723560643220,-500.0,0.00013698,2]
[334784834,1723560643229,-500.0,0.00013698,2]
[334784835,1723560643240,-1252.87,0.00013698,2]
[334784836,1723560643251,-500.0,0.00013698,2]
[334784837,1723560643263,-2399.25,0.00013698,2]
[334784838,1723560643274,-1095.85,0.00013698,2]
[334784839,1723560643285,-500.0,0.00013698,2]
[334784840,1723560643296,-500.0,0.00013698,2]
[334784841,1723560643306,-722.23,0.00013698,2]
[334784842,1723560643316,-1216.63,0.00013698,2]
[334784843,1723560643326,-500.0,0.00013698,2]
[334784844,1723560643335,-512.12221757,0.00013698,2]
[334784845,1723560643346,-500.0,0.00013698,2]
[334784846,1723560643355,-500.0,0.00013698,2]
[334784847,1723560643365,-500.0,0.00013698,2]
[334784848,1723560643375,-681.71,0.00013698,2]
[334784849,1723560643386,-500.0,0.00013698,2]
[334784850,1723560643398,-709.45,0.00013698,2]
[334784851,1723560643408,-504.58301167,0.00013698,2]
[334784852,1723560643418,-785.51,0.00013698,2]
[334784853,1723560643429,-504.90662939,0.00013698,2]
[334784854,1723560643438,-661.5,0.00013698,2]
[334784855,1723560643449,-506.73503378,0.00013698,2]
[334784856,1723560643459,-1574.63,0.00013698,2]
[334784857,1723560643469,-5937.75,0.00013698,2]
[334784858,1723560643479,-507.34383413,0.00013698,2]
[334784859,1723560643489,-500.0,0.00013698,2]
[334784860,1723560643499,-500.0,0.00013698,2]
[334784861,1723560643508,-235.05888984,0.00013698,2]
[334784862,1723560643518,-988.62,0.00013698,2]
[334784863,1723560643528,-500.0,0.00013698,2]
[334784864,1723560643538,-500.0,0.00013698,2]
[334784865,1723560643548,-395.18494103,0.00013698,2]
[334784866,1723560643558,-670.35,0.00013698,2]
[334784867,1723560643568,-304.98898775,0.00013698,2]
[334784868,1723560643578,-1772.27,0.00013698,2]
[334784869,1723560643587,-500.0,0.00013698,2]
[334784870,1723560643597,-500.0,0.00013698,2]
[334784871,1723560643607,-500.0,0.00013698,2]
[334784872,1723560643617,-705.22,0.00013698,2]
[334784873,1723560643627,-500.0,0.00013698,2]
[334784874,1723560643637,-500.0,0.00013698,2]
[334784875,1723560643648,-500.0,0.00013698,2]